Workbook

Sheet إجمالى
A1: اسم المقاول | B1: نوع الاعمال | C1: رقم المشروع | D1: رقم المستخلص | E1: فترة المشروع | F1: صافي أعمال الفترة 6 | G1: خصم ضمان اعمال نهائي 7 | H1: خصم ضرائب منبع 8 | I1: خصومات تمت بالموقع 9 | J1: خصم ما سبق صرفه من المكتب 10 | K1: اضافة مقطوعية | L1: صافى المستخلص الحالي 11
A2: اسم المقاول : حسن | B2: نوع الاعمال: أعمــال البيــاض | C2: مشروع 1 | D2: مستخلص رقم : جاري (1) | E2: المـــدة : من 2019/09/01 حتى 2019/09/15 | F2: 21600 | G2: -1080 | H2: -648 | I2: 0 | J2: 0 | L2: 19872
A3: اسم المقاول : حسن | B3: نوع الاعمال: أعمــال البيــاض | C3: مشروع 1 | D3: مستخلص رقم : جاري (2) | E3: المـــدة : من 2019/09/16 حتى 2019/09/25 | F3: 51200 | G3: -2560 | H3: -1536 | I3: 0 | J3: 0 | L3: 47104
A4: اسم المقاول : حسن | B4: نوع الاعمال: أعمــال البيــاض | C4: مشروع 1 | D4: مستخلص رقم : جاري (3) | E4: المـــدة : من 2019/09/25 حتى 2019/10/10 | F4: 38656 | G4: -1932.8 | H4: -1159.7 | I4: -1025 | J4: 0 | K4: 5850 | L4: 40388.5
A5: اسم المقاول : حسن | B5: نوع الاعمال: أعمــال البيــاض | C5: مشروع 1 | D5: مستخلص رقم : جاري (4) | E5: المـــدة : من 2019/10/10 حتى 2019/10/24 | F5: 77676 | G5: -3883.8 | H5: -2330.3 | I5: -1125 | J5: 0 | K5: 3601 | L5: 73937.9
A6: اسم المقاول : حسن | B6: نوع الاعمال: أعمــال البيــاض | C6: مشروع 1 | D6: مستخلص رقم : جاري (5) | E6: المـــدة : من 2019/10/24 حتى 2019/11/07 | F6: 73674.15998 | G6: -3683.707999 | H6: -2210.204799 | I6: -500 | K6: -73936.9 | L6: -6656.652823
A7: اسم المقاول : حسن | B7: نوع الاعمال: أعمــال البيــاض | C7: مشروع 1 | D7: مستخلص رقم : جاري ( 6 ) | E7: المـــدة : من 2019/11/07 حتى 2019/11/23 | F7: 59306.32918 | G7: -2965.316459 | H7: -1779.159876 | I7: 0 | J7: 0 | K7: 0 | L7: 54561.85285
A8: اسم المقاول: عصام | B8: نوع الاعمال: اعمال بياض محارة عمارة رقم ( 12 ) | C8: مشروع 2 | D8: مستخلص رقم : جاري ( 1 ) | E8: المدة: من 2019/11/01 حتى 2020/01/01 | F8: 11250 | G8: -562.5 | H8: -337.5 | I8: 0 | J8: 0 | K8: 0 | L8: 10350
A9: اسم المقاول: عصام | B9: نوع الاعمال: اعمال بياض محارة عمارة رقم ( 12 ) | C9: مشروع 2 | D9: مستخلص رقم : جاري ( 2 ) | E9: المدة: من 2020/01/02 حتى 2020/01/30 | F9: 20250 | G9: -1012.5 | H9: -607.5 | I9: 0 | J9: 0 | K9: 0 | L9: 18630
A10: اسم المقاول: عصام | B10: نوع الاعمال: اعمال بياض محارة عمارة رقم ( 12 ) | C10: مشروع 2 | D10: مستخلص رقم : جاري ( 3 ) | E10: المدة: من 2020/01/31 حتى 2020/02/27 | F10: 13900 | G10: -695 | H10: -417 | I10: 0 | J10: 0 | K10: 0 | L10: 12788
A11: اسم المقاول: عصام | B11: نوع الاعمال: اعمال بياض محارة عمارة رقم ( 12 ) | C11: مشروع 2 | D11: مستخلص رقم : جاري ( 4 ) | E11: المدة: من 2020/02/27 حتى 2020/03/12 | F11: 14812 | G11: -740.6 | H11: -444.35 | I11: 0 | J11: 0 | K11: 0 | L11: 13627.05

Sheet مقاولة 1
A1: اسم المقاول : حسن | C1: مشروع 1
A2: نوع الاعمال: أعمــال البيــاض | C2: مستخلص رقم : جاري (1) | G2: المـــدة : من 2019/09/01 حتى 2019/09/15
A3: بيانات الاعمال بالعقد | G3: كميات الاعمال المنفذة | K3: قيمة الاعمال المنفذة | N3: المبالغ المستحقة الصرف
A4: م | B4: البند | C4: الوحدة | D4: الكمية | E4: الفئة | G4: السابقة | H4: الحالية | I4: الاجمالى | K4: الحالية | L4: الاجمالى | N4: نسبة الاتمام | O4: المتبقي للاتمام | P4: الصافى
A5: 1 | B5: بالمترالمسطح مصنعيات بياض داخلي لزوم الحوائط والاسقف والمداخل والسلالم | C5: م2 | D5: 15500 | E5: 32 | G5: 0 | H5: =I5-G5 -> 900 | I5: 900 | K5: =H5*E5 -> 28800 | L5: =I5*E5 -> 28800 | N5: 0.75 | O5: =L5*(1-N5) -> 7200 | P5: =L5-O5 -> 21600
B23: الاجمالى | K23: =SUM(K5:K22) -> 28800 | L23: =SUM(L5:L22) -> 28800 | O23: =SUM(O1:O22) -> 7200 | P23: =SUM(P5:P22) -> 21600 | Q23: =P23-#REF! -> 
B24: صافي أعمال الفترة 6 | D24: =P23 -> 21600
A25: 1 | B25: خصم ضمان اعمال نهائي 7 | C25: 0.05 | D25: =-D24*C25 -> -1080 | P25: =-P23*C25 -> -1080
A26: 2 | B26: خصم ضرائب منبع 8 | C26: 0.03 | D26: =-D24*C26 -> -648 | P26: =-P23*C26 -> -648
A27: 3 | B27: خصومات تمت بالموقع 9 | D27: 0 | P27: 0
A28: 4 | B28: خصم ما سبق صرفه من المكتب 10 | D28: 0 | P28: 0
B29: صافى المستخلص الحالي 11 | D29: =SUM(D24:E28) -> 19872 | P29: =SUM(P23:P28) -> 19872
B31: المقـــــــــاول | C31: المحـــاسب | G31: مراجع الحســـابات | K31: مدير عام المشروعات | N31: رئيس القطــاع المالى
B33: .................................................................... | C33: ................................................. | G33: ................................................. | J33: .................................................... | N33: ............................................................
A34: اسم المقاول : حسن | C34: مشروع 1
A35: نوع الاعمال: أعمــال البيــاض | C35: مستخلص رقم : جاري (2) | G35: المـــدة : من 2019/09/16 حتى 2019/09/25
A36: بيانات الاعمال بالعقد | G36: كميات الاعمال المنفذة | K36: قيمة الاعمال المنفذة | N36: المبالغ المستحقة الصرف
A37: م | B37: البند | C37: الوحدة | D37: الكمية | E37: الفئة | G37: السابقة | H37: الحالية | I37: الاجمالى | K37: الحالية | L37: الاجمالى | N37: نسبة الاتمام | O37: المتبقي للاتمام | P37: الصافى
A38: 1 | B38: بالمترالمسطح مصنعيات بياض داخلي لزوم الحوائط والاسقف والمداخل والسلالم | C38: م2 | D38: 15500 | E38: 32 | G38: 900 | H38: =I38-G38 -> 2600 | I38: 3500 | K38: =H38*E38 -> 83200 | L38: =I38*E38 -> 112000 | N38: 0.65 | O38: =L38*(1-N38) -> 39200 | P38: =L38-O38 -> 72800
B56: الاجمالى | K56: =SUM(K38:K55) -> 83200 | L56: =SUM(L38:L55) -> 112000 | O56: =SUM(O34:O55) -> 39200 | P56: =SUM(P38:P55) -> 72800 | Q56: =P56-P23 -> 51200
B57: صافي أعمال الفترة | D57: =Q56 -> 51200
A58: 1 | B58: خصم ضمان اعمال نهائي | C58: 0.05 | D58: =-D57*C58 -> -2560 | P58: =-P56*C58 -> -3640
A59: 2 | B59: خصم ضرائب منبع | C59: 0.03 | D59: =-D57*C59 -> -1536 | P59: =P26+D59 -> -2184
A60: 3 | B60: خصومات تمت بالموقع | D60: 0 | P60: 0
A61: 4 | B61: خصم ما سبق صرفه من المكتب | D61: 0 | P61: =-19872 -> -19872
B62: صافى المستخلص الحالى | D62: =SUM(D57:E61) -> 47104 | P62: =SUM(P56:P61) -> 47104
B64: المقـــــــــاول | C64: المحـــاسب | G64: مراجع الحســـابات | K64: مدير عام المشروعات | N64: رئيس القطــاع المالى
B66: .................................................................... | C66: ................................................. | G66: ................................................. | J66: .................................................... | N66: ............................................................
A67: اسم المقاول : حسن | C67: مشروع 1
A68: نوع الاعمال: أعمــال البيــاض | C68: مستخلص رقم : جاري (3) | G68: المـــدة : من 2019/09/25 حتى 2019/10/10
A69: بيانات الاعمال بالعقد | G69: كميات الاعمال المنفذة | K69: قيمة الاعمال المنفذة | N69: المبالغ المستحقة الصرف
A70: م | B70: البند | C70: الوحدة | D70: الكمية | E70: الفئة | G70: السابقة | H70: الحالية | I70: الاجمالى | K70: الحالية | L70: الاجمالى | N70: نسبة الاتمام | O70: المتبقي للاتمام | P70: الصافى
A71: 1 | B71: بالمترالمسطح مصنعيات بياض داخلي لزوم الحوائط والاسقف والمداخل والسلالم | C71: م2 | D71: 15500 | E71: 32 | G71: 3500 | H71: =I71-G71 -> 1900 | I71: 5400 | K71: =H71*E71 -> 60800 | L71: =I71*E71 -> 172800 | N71: 0.645 | O71: =L71*(1-N71) -> 61344 | P71: =L71-O71 -> 111456
B89: الاجمالى | K89: =SUM(K71:K88) -> 60800 | L89: =SUM(L71:L88) -> 172800 | O89: =SUM(O67:O88) -> 61344 | P89: =SUM(P71:P88) -> 111456 | Q89: =P89-P56 -> 38656
B90: صافي أعمال الفترة | D90: =Q89 -> 38656
A91: 1 | B91: خصم ضمان اعمال نهائي | C91: 0.05 | D91: =-D90*C91 -> -1932.8 | P91: =-P89*C91 -> -5572.8
A92: 2 | B92: خصم ضرائب منبع | C92: 0.03 | D92: =-D90*C92-0.02 -> -1159.7 | P92: =P59+D92 -> -3343.7
A93: 3 | B93: خصم قيمة استلام مهمات امان صناعي بالموقع | D93: =-1025 -> -1025 | P93: =-1025 -> -1025
A94: 4 | B94: خصم ما سبق صرفه من المكتب | D94: 0 | P94: 5850
A95: 5 | B95: اضافة مقطوعية اعمال التلبيش بالخصم على مقاولي الباطن عصام خيري | D95: 5850 | P95: =-66976 -> -66976
B96: صافى المستخلص الحالى | D96: =SUM(D90:E95) -> 40388.5 | P96: =SUM(P89:P95) -> 40388.5
B98: المقـــــــــاول | C98: المحـــاسب | G98: مراجع الحســـابات | K98: مدير عام المشروعات | N98: رئيس القطــاع المالى
B100: .................................................................... | C100: ................................................. | G100: ................................................. | J100: .................................................... | N100: ............................................................
A101: اسم المقاول : حسن | C101: مشروع 1
A102: نوع الاعمال: أعمــال البيــاض | C102: مستخلص رقم : جاري (4) | G102: المـــدة : من 2019/10/10 حتى 2019/10/24
A103: بيانات الاعمال بالعقد | G103: كميات الاعمال المنفذة | K103: قيمة الاعمال المنفذة | N103: المبالغ المستحقة الصرف
A104: م | B104: البند | C104: الوحدة | D104: الكمية | E104: الفئة | G104: السابقة | H104: الحالية | I104: الاجمالى | K104: الحالية | L104: الاجمالى | N104: نسبة الاتمام | O104: المتبقي للاتمام | P104: الصافى
A105: 1 | B105: بالمترالمسطح مصنعيات بياض داخلي لزوم الحوائط والاسقف والمداخل والسلالم | C105: م2 | D105: 15500 | E105: 32 | G105: 5400 | H105: =I105-G105 -> 6500 | I105: 11900 | K105: =H105*E105 -> 208000 | L105: =I105*E105 -> 380800 | N105: 0.39 | O105: =L105*(1-N105) -> 232288 | P105: =L105-O105 -> 148512
A106: 2 | B106: بالمترالمسطح مصنعيات بياض داخلي لزوم الواجهات | C106: م2 | D106: 2220 | E106: 40 | G106: 0 | H106: =I106-G106 -> 1500 | I106: 1500 | K106: =H106*E106 -> 60000 | L106: =I106*E106 -> 60000 | N106: 0.38 | O106: =L106*(1-N106) -> 37200 | P106: =L106-O106 -> 22800
A107: 3 | B107: بالمتر المسطح اعمال مصنعيات طرطشة اسفل حجر الهاشمة | C107: م2 | D107: 0 | E107: 10 | G107: 0 | H107: =I107-G107 -> 4050 | I107: 4050 | K107: =I107*E107 -> 40500 | L107: =I107*E107 -> 40500 | N107: 0.44 | O107: =L107*(1-N107) -> 22680 | P107: =L107-O107 -> 17820
B123: الاجمالى | K123: =SUM(K105:K122) -> 308500 | L123: =SUM(L105:L122) -> 481300 | O123: =SUM(O101:O122) -> 292168 | P123: =SUM(P105:P122) -> 189132 | Q123: =P123-P89 -> 77676
B124: صافي أعمال الفترة | D124: =Q123 -> 77676
A125: 1 | B125: خصم ضمان اعمال نهائي | C125: 0.05 | D125: =-D124*C125 -> -3883.8 | P125: =-P123*C125 -> -9456.6
A126: 2 | B126: خصم ضرائب منبع | C126: 0.03 | D126: =-D124*C126-0.02 -> -2330.3 | P126: =P92+D126 -> -5674
A127: 3 | B127: خصم قيمة استلام مهمات امان صناعي بالموقع | D127: -1125 | P127: -2150
A128: 4 | B128: خصم ما سبق صرفه من المكتب | D128: 0 | P128: 9450
A129: 5 | B129: اضافة مقطوعية اعمال التلبيش بالخصم على مقاولي الباطن | D129: 3601 | P129: =-19872-47104-40388.5 -> -107364.5
B130: صافى المستخلص الحالى | D130: =SUM(D124:E129) -> 73937.9 | P130: =SUM(P123:P129) -> 73936.9
B132: المقـــــــــاول | C132: المحـــاسب | G132: مراجع الحســـابات | K132: مدير عام المشروعات | N132: رئيس القطــاع المالى
B134: .................................................................... | C134: ................................................. | G134: ................................................. | J134: .................................................... | N134: ............................................................
A135: اسم المقاول : حسن | C135: مشروع 1
A136: نوع الاعمال: أعمــال البيــاض | C136: مستخلص رقم : جاري (5) | G136: المـــدة : من 2019/10/24 حتى 2019/11/07
A137: بيانات الاعمال بالعقد | G137: كميات الاعمال المنفذة | K137: قيمة الاعمال المنفذة | N137: المبالغ المستحقة الصرف
A138: م | B138: البند | C138: الوحدة | D138: الكمية | E138: الفئة | G138: السابقة | H138: الحالية | I138: الاجمالى | K138: الحالية | L138: الاجمالى | N138: نسبة الاتمام | O138: المتبقي للاتمام | P138: الصافى
A139: 1 | B139: بالمترالمسطح مصنعيات بياض داخلي لزوم الحوائط والاسقف والمداخل والسلالم | C139: م2 | D139: 15500 | E139: 32 | G139: 11900 | H139: =I139-G139 -> 0 | I139: 11900 | K139: =H139*E139 -> 0 | L139: =I139*E139 -> 380800 | N139: 0.438612 | O139: =L139*(1-N139) -> 213776.5504 | P139: =L139-O139 -> 167023.4496
A140: 2 | B140: بالمترالمسطح مصنعيات بياض خارجي لزوم الواجهات | C140: م2 | D140: 2220 | E140: 40 | G140: 1500 | H140: =I140-G140 -> 1125 | I140: 2625 | K140: =H140*E140 -> 45000 | L140: =I140*E140 -> 105000 | N140: 0.59905 | O140: =L140*(1-N140) -> 42099.75 | P140: =L140-O140 -> 62900.25
A141: 3 | B141: بالمتر المسطح اعمال مصنعيات طرطشة اسفل حجر الهاشمة | C141: م2 | D141: 0 | E141: 10 | G141: 4050 | H141: =I141-G141 -> 0 | I141: 4050 | K141: =H141*E141 -> 0 | L141: =I141*E141 -> 40500 | N141: 0.617777 | O141: =L141*(1-N141) -> 15480.0315 | P141: =L141-O141 -> 25019.9685
A142: 4 | B142: علاوة مصنعيات بياض خارجي لزوم الواجهات | C142: م2 | D142: 2220 | E142: 5 | G142: 0 | H142: =I142-G142 -> 2625 | I142: 2625 | K142: =H142*E142 -> 13125 | L142: =I142*E142 -> 13125 | N142: 0.599047 | O142: =L142*(1-N142) -> 5262.508125 | P142: =L142-O142 -> 7862.491875
B157: الاجمالى | K157: =SUM(K139:K156) -> 58125 | L157: =SUM(L139:L156) -> 539425 | O157: =SUM(O135:O156) -> 276618.84 | P157: =SUM(P139:P156) -> 262806.16 | Q157: =P157-P123 -> 73674.15998
B158: صافي أعمال الفترة | D158: =Q157 -> 73674.15998
A159: 1 | B159: خصم ضمان اعمال نهائي | C159: 0.05 | D159: =-D158*C159 -> -3683.707999 | P159: =-P157*C159 -> -13140.308
A160: 2 | B160: خصم ضرائب منبع | C160: 0.03 | D160: =-D158*C160+0.02 -> -2210.204799 | P160: =P126+D160 -> -7884.204799
A161: 3 | B161: خصم قيمة استلام مهمات امان صناعي بالموقع | D161: =P161-P127 -> -500 | P161: =-2150-500 -> -2650
A162: 4 | B162: خصم ما سبق صرفه من المكتب | P162: =9450+10200 -> 19650
A163: 5 | B163: اضافة مقطوعية اعمال التلبيش بالخصم على مقاولي الباطن | D163: =P163-P129 -> -73936.9 | P163: =-19872-47104-40388.5-73936.9 -> -181301.4
B164: صافى المستخلص الحالى | D164: =SUM(D158:E163) -> -6656.652823 | P164: =SUM(P157:P163) -> 77480.24718
B166: المقـــــــــاول | C166: المحـــاسب | G166: مراجع الحســـابات | K166: مدير عام المشروعات | N166: رئيس القطــاع المالى
B168: .................................................................... | C168: ................................................. | G168: ................................................. | J168: .................................................... | N168: ............................................................
A169: اسم المقاول : حسن | C169: مشروع 1
A170: نوع الاعمال: أعمــال البيــاض | C170: مستخلص رقم : جاري ( 6 ) | G170: المـــدة : من 2019/11/07 حتى 2019/11/23
A171: بيانات الاعمال بالعقد | G171: كميات الاعمال المنفذة | K171: قيمة الاعمال المنفذة | N171: المبالغ المستحقة الصرف
A172: م | B172: البند | C172: الوحدة | D172: الكمية | E172: الفئة | G172: السابقة | H172: الحالية | I172: الاجمالى | K172: الحالية | L172: الاجمالى | N172: نسبة الاتمام | O172: المتبقي للاتمام | P172: الصافى
A173: 1 | B173: بالمترالمسطح مصنعيات بياض داخلي لزوم الحوائط والاسقف والمداخل والسلالم | C173: م2 | D173: 15500 | E173: 32 | G173: 11900 | H173: =I173-G173 -> 0 | I173: 11900 | K173: =H173*E173 -> 0 | L173: =I173*E173 -> 380800 | N173: 0.49264705 | O173: =L173*(1-N173) -> 193200.0034 | P173: =L173-O173 -> 187599.9966
A174: 2 | B174: بالمترالمسطح مصنعيات بياض خارجي لزوم الواجهات | C174: م2 | D174: 2220 | E174: 40 | G174: 2625 | H174: =I174-G174 -> 0 | I174: 2625 | K174: =H174*E174 -> 0 | L174: =I174*E174 -> 105000 | N174: 0.8428571 | O174: =L174*(1-N174) -> 16500.0045 | P174: =L174-O174 -> 88499.9955
A175: 3 | B175: بالمتر المسطح اعمال مصنعيات طرطشة اسفل حجر الهاشمة | C175: م2 | D175: 0 | E175: 10 | G175: 4050 | H175: =I175-G175 -> 0 | I175: 4050 | K175: =H175*E175 -> 0 | L175: =I175*E175 -> 40500 | N175: 0.8629629 | O175: =L175*(1-N175) -> 5550.00255 | P175: =L175-O175 -> 34949.99745
A176: 4 | B176: علاوة مصنعيات بياض خارجي لزوم الواجهات | C176: م2 | D176: 2220 | E176: 5 | G176: 2625 | H176: =I176-G176 -> 0 | I176: 2625 | K176: =H176*E176 -> 0 | L176: =I176*E176 -> 13125 | N176: 0.84285711 | O176: =L176*(1-N176) -> 2062.500431 | P176: =L176-O176 -> 11062.49957
B191: الاجمالى | K191: =SUM(K173:K190) -> 0 | L191: =SUM(L173:L190) -> 539425 | O191: =SUM(O169:O190) -> 217312.5108 | P191: =SUM(P173:P190) -> 322112.4892 | Q191: =P191-P157 -> 59306.32918
B192: صافي أعمال الفترة | D192: =Q191 -> 59306.32918
A193: 1 | B193: خصم ضمان اعمال نهائي | C193: 0.05 | D193: =-D192*C193 -> -2965.316459 | P193: =-P191*C193 -> -16105.62446
A194: 2 | B194: خصم ضرائب منبع | C194: 0.03 | D194: =-D192*C194+0.03 -> -1779.159876 | P194: =P160+D194 -> -9663.364675
A195: 3 | B195: خصم قيمة استلام مهمات امان صناعي بالموقع | D195: =P195-P161 -> 0 | P195: =-2150-500 -> -2650
A196: 4 | B196: اضافة مقطوعية اعمال التلبيش بالخصم على مقاولي الباطن | D196: =P196-P162 -> 0 | P196: =9450+10200 -> 19650
A197: 5 | B197: خصم ما سبق صرفه من المكتب | D197: 0 | P197: =-19872-47104-40388.5-73936.9-77480.25 -> -258781.65
B198: صافى المستخلص الحالى | D198: =SUM(D192:E197) -> 54561.85285 | P198: =SUM(P191:P197) -> 54561.85003
B200: المقـــــــــاول | C200: المحـــاسب | G200: مراجع الحســـابات | K200: مدير عام المشروعات | N200: رئيس القطــاع المالى
B202: .................................................................... | C202: ................................................. | G202: ................................................. | J202: .................................................... | N202: ............................................................

Sheet مقاولة 2
A1: اسم المقاول: عصام | C1: مشروع 2
A2: نوع الاعمال: اعمال بياض محارة عمارة رقم ( 12 ) | C2: مستخلص رقم : جاري ( 1 ) | G2: المدة: من 2019/11/01 حتى 2020/01/01
A3: بيانات الاعمال بالعقد | G3: كميات الاعمال المنفذة | K3: قيمة الاعمال المنفذة | N3: المبالغ المستحقة الصرف
A4: م | B4: البند | C4: الوحدة | D4: الكمية | E4: الفئة | G4: السابقة | H4: الحالية | I4: الاجمالى | K4: الحالية | L4: الاجمالى | N4: نسبة الاتمام | O4: المتبقي للاتمام | P4: الصافى
A5: 1 | B5: بالمتر المسطح : مصنعيات محارة لزوم الواجهات الخارجية | C5: م2 | D5: 2000 | E5: 45 | G5: 0 | H5: =I5-G5 -> 1000 | I5: 1000 | K5: =E5*H5 -> 45000 | L5: =E5*I5 -> 45000 | N5: 0.25 | O5: =L5*(1-N5) -> 33750 | P5: =L5-O5 -> 11250
A6: 2 | B6: بالمتر الطولي : مصنعيات عراميس لزوم الواجهات الخارجية | C6: م . ط | E6: 10 | G6: 0 | H6: =I6-G6 -> 0 | I6: 0 | K6: =E6*H6 -> 0 | L6: =E6*I6 -> 0 | N6: 1 | O6: =L6*(1-N6) -> 0 | P6: =L6-O6 -> 0
B23: الاجمالى | K23: =SUM(K5:K22) -> 45000 | L23: =SUM(L5:L22) -> 45000 | O23: =SUM(O5:O22) -> 33750 | P23: =SUM(P5:P22) -> 11250
B24: صافي أعمال الفترة | D24: =P23 -> 11250
A25: 1 | B25: خصم تأمين اعمال نهائى | C25: 0.05 | D25: =-D24*C25 -> -562.5 | P25: =-P23*C25 -> -562.5
A26: 2 | B26: خصم ضرائب منبع | C26: 0.03 | D26: =-D24*C26 -> -337.5 | P26: =-P23*C26 -> -337.5
A27: 3 | B27: خصم قيمة استلام مهمات أمان صناعي بالموقع | D27: 0 | P27: 0
A28: 4 | B28: خصم عدم التزام بتعليمات الامان الصناعي | D28: 0 | P28: 0
A29: 5 | B29: خصم ما سبق صرفه من المكتب | D29: 0 | P29: 0
B30: صافى المستخلص الحالى | D30: =SUM(D24:E29) -> 10350 | P30: =SUM(P23:P29) -> 10350
B32: المقاول | C32: المحاسب | G32: مراجع الحسابات | K32: مدير عام المشروعات | N32: رئيس القطاع المالى
B34: ……………………………………………………… | C34: ……………………………………………. | G34: ………………………………………….. | J34: ……………………………………. | N34: ………………………………………………..
A35: اسم المقاول: عصام | C35: مشروع 2
A36: نوع الاعمال: اعمال بياض محارة عمارة رقم ( 12 ) | C36: مستخلص رقم : جاري ( 2 ) | G36: المدة: من 2020/01/02 حتى 2020/01/30
A37: بيانات الاعمال بالعقد | G37: كميات الاعمال المنفذة | K37: قيمة الاعمال المنفذة | N37: المبالغ المستحقة الصرف
A38: م | B38: البند | C38: الوحدة | D38: الكمية | E38: الفئة | G38: السابقة | H38: الحالية | I38: الاجمالى | K38: الحالية | L38: الاجمالى | N38: نسبة الاتمام | O38: المتبقي للاتمام | P38: الصافى
A39: 1 | B39: بالمتر المسطح : مصنعيات محارة لزوم الواجهات الخارجية | C39: م2 | D39: 2000 | E39: 45 | G39: 1000 | H39: =I39-G39 -> 0 | I39: 1000 | K39: =E39*H39 -> 0 | L39: =E39*I39 -> 45000 | N39: 0.7 | O39: =L39*(1-N39) -> 13500 | P39: =L39-O39 -> 31500
A40: 2 | B40: بالمتر الطولي : مصنعيات عراميس لزوم الواجهات الخارجية | C40: م . ط | E40: 10 | G40: 0 | H40: =I40-G40 -> 0 | I40: 0 | K40: =E40*H40 -> 0 | L40: =E40*I40 -> 0 | N40: 1 | O40: =L40*(1-N40) -> 0 | P40: =L40-O40 -> 0
B57: الاجمالى | K57: =SUM(K39:K56) -> 0 | L57: =SUM(L39:L56) -> 45000 | O57: =SUM(O39:O56) -> 13500 | P57: =SUM(P39:P56) -> 31500 | Q57: =P57-P23 -> 20250
B58: صافي أعمال الفترة | D58: =Q57 -> 20250
A59: 1 | B59: خصم تأمين اعمال نهائى | C59: 0.05 | D59: =-D58*C59 -> -1012.5 | P59: =-P57*C59 -> -1575
A60: 2 | B60: خصم ضرائب منبع | C60: 0.03 | D60: =-D58*C60 -> -607.5 | P60: =P26+D60 -> -945
A61: 3 | B61: خصم قيمة استلام مهمات أمان صناعي بالموقع | D61: 0 | P61: 0
A62: 4 | B62: خصم عدم التزام بتعليمات الامان الصناعي | D62: 0 | P62: 0
A63: 5 | B63: خصم ما سبق صرفه من المكتب | D63: 0 | P63: =-10350 -> -10350
B64: صافى المستخلص الحالى | D64: =SUM(D58:E63) -> 18630 | P64: =SUM(P57:P63) -> 18630
B66: المقاول | C66: المحاسب | G66: مراجع الحسابات | K66: مدير عام المشروعات | N66: رئيس القطاع المالى
B68: ……………………………………………………… | C68: ……………………………………………. | G68: ………………………………………….. | J68: ……………………………………. | N68: ………………………………………………..
A69: اسم المقاول: عصام | C69: مشروع 2
A70: نوع الاعمال: اعمال بياض محارة عمارة رقم ( 12 ) | C70: مستخلص رقم : جاري ( 3 ) | G70: المدة: من 2020/01/31 حتى 2020/02/27
A71: بيانات الاعمال بالعقد | G71: كميات الاعمال المنفذة | K71: قيمة الاعمال المنفذة | N71: المبالغ المستحقة الصرف
A72: م | B72: البند | C72: الوحدة | D72: الكمية | E72: الفئة | G72: السابقة | H72: الحالية | I72: الاجمالى | K72: الحالية | L72: الاجمالى | N72: نسبة الاتمام | O72: المتبقي للاتمام | P72: الصافى
A73: 1 | B73: بالمتر المسطح : مصنعيات محارة لزوم الواجهات الخارجية | C73: م2 | D73: 2000 | E73: 45 | G73: 1000 | H73: =I73-G73 -> 0 | I73: 1000 | K73: =E73*H73 -> 0 | L73: =E73*I73 -> 45000 | N73: 0.9 | O73: =L73*(1-N73) -> 4500 | P73: =L73-O73 -> 40500
A74: 2 | B74: بالمتر الطولي : مصنعيات عراميس لزوم الواجهات الخارجية | C74: م . ط | E74: 10 | G74: 0 | H74: =I74-G74 -> 700 | I74: 700 | K74: =E74*H74 -> 7000 | L74: =E74*I74 -> 7000 | N74: 0.7 | O74: =L74*(1-N74) -> 2100 | P74: =L74-O74 -> 4900
B91: الاجمالى | K91: =SUM(K73:K90) -> 7000 | L91: =SUM(L73:L90) -> 52000 | O91: =SUM(O73:O90) -> 6600 | P91: =SUM(P73:P90) -> 45400 | Q91: =P91-P57 -> 13900
B92: صافي أعمال الفترة | D92: =Q91 -> 13900
A93: 1 | B93: خصم تأمين اعمال نهائى | C93: 0.05 | D93: =-D92*C93 -> -695 | P93: =-P91*C93 -> -2270
A94: 2 | B94: خصم ضرائب منبع | C94: 0.03 | D94: =-D92*C94 -> -417 | P94: =P60+D94 -> -1362
A95: 3 | B95: خصم قيمة استلام مهمات أمان صناعي بالموقع | D95: 0 | P95: 0
A96: 4 | B96: خصم عدم التزام بتعليمات الامان الصناعي | D96: 0 | P96: 0
A97: 5 | B97: خصم ما سبق صرفه من المكتب | D97: 0 | P97: =-10350-18630 -> -28980
B98: صافى المستخلص الحالى | D98: =SUM(D92:E97) -> 12788 | P98: =SUM(P91:P97) -> 12788
B100: المقاول | C100: المحاسب | G100: مراجع الحسابات | K100: مدير عام المشروعات | N100: رئيس القطاع المالى
B102: ……………………………………………………… | C102: ……………………………………………. | G102: ………………………………………….. | J102: ……………………………………. | N102: ………………………………………………..
A104: اسم المقاول: عصام | C104: مشروع 2
A105: نوع الاعمال: اعمال بياض محارة عمارة رقم ( 12 ) | C105: مستخلص رقم : جاري ( 4 ) | G105: المدة: من 2020/02/27 حتى 2020/03/12
A106: بيانات الاعمال بالعقد | G106: كميات الاعمال المنفذة | K106: قيمة الاعمال المنفذة | N106: المبالغ المستحقة الصرف
A107: م | B107: البند | C107: الوحدة | D107: الكمية | E107: الفئة | G107: السابقة | H107: الحالية | I107: الاجمالى | K107: الحالية | L107: الاجمالى | N107: نسبة الاتمام | O107: المتبقي للاتمام | P107: الصافى
A108: 1 | B108: مصنعيات محارة لزوم الواجهات الخارجية ( الجزء الأيمن - واجهة جانبية شرقية ) | C108: م2 | D108: 2000 | E108: 45 | G108: 1000 | H108: =I108-G108 -> 0 | I108: 1000 | K108: =E108*H108 -> 0 | L108: =E108*I108 -> 45000 | N108: 0.9 | O108: =L108*(1-N108) -> 4500 | P108: =L108-O108 -> 40500
A109: 2 | B109: مصنعيات عراميس لزوم الواجهات الخارجية ( الجزء الأيمن - واجهة جانبية شرقية ) | C109: م . ط | D109: 1000 | E109: 10 | G109: 700 | H109: 0 | I109: 700 | K109: 0 | L109: 7000 | N109: 0.9 | O109: 700 | P109: 6300
A110: 3 | B110: مصنعيات محارة لزوم الواجهات الخارجية ( الجزء الايمن - واجهة خلفية بين محوري M , G ) | C110: م2 | D110: - | E110: 45 | G110: 0 | H110: 285 | I110: 285 | K110: 12825 | L110: 12825 | N110: 0.8 | O110: 2565 | P110: 10260
A111: 4 | B111: مصنعيات عراميس لزوم الواجهات الخارجية ( الجزء الايمن - واجهة خلفية بين محوري M , G ) | C111: م . ط | D111: - | E111: 10 | G111: 0 | H111: 44 | I111: 44 | K111: 440 | L111: 440 | N111: 0.8 | O111: 88 | P111: 352
A112: 5 | B112: مقطوعية عتب شباك الدور الخامس بين محوري ( 25 و 31 ) - تزريع - تركيب - سلك - تسليخ - محارة ) | C112: مقط | D112: - | E112: 2000 | G112: 0 | H112: 1 | I112: 1 | K112: 2000 | L112: 2000 | N112: 0.8 | O112: 400 | P112: 1600
A113: 6 | B113: يوميات تلبيش | C113: يومية | D113: - | E113: 400 | G113: 0 | H113: 3 | I113: 3 | K113: 1200 | L113: 1200 | N113: 1 | O113: 0 | P113: 1200
B126: الاجمالى | K126: =SUM(K108:K125) -> 16465 | L126: =SUM(L108:L125) -> 68465 | O126: =SUM(O108:O125) -> 8253 | P126: =SUM(P108:P125) -> 60212 | Q126: =P126-P91 -> 14812
B127: صافي أعمال الفترة | D127: =Q126 -> 14812
A128: 1 | B128: خصم تأمين اعمال نهائى | C128: 0.05 | D128: =-D127*C128 -> -740.6 | P128: =-P126*C128 -> -3010.6
A129: 2 | B129: خصم ضرائب منبع | C129: 0.03 | D129: =-D127*C129+0.01 -> -444.35 | P129: =P94+D129 -> -1806.35
A130: 3 | B130: خصم قيمة استلام مهمات أمان صناعي بالموقع | D130: 0 | P130: 0
A131: 4 | B131: خصم عدم التزام بتعليمات الامان الصناعي | D131: 0 | P131: 0
A132: 5 | B132: خصم ما سبق صرفه من المكتب | D132: 0 | P132: =-10350-18630-12788 -> -41768
B133: صافى المستخلص الحالى | D133: =SUM(D127:E132) -> 13627.05 | P133: =SUM(P126:P132) -> 13627.05
B135: المقاول | C135: المحاسب | G135: مراجع الحسابات | K135: مدير عام المشروعات | N135: رئيس القطاع المالى
B137: ……………………………………………………… | C137: ……………………………………………. | G137: ………………………………………….. | J137: ……………………………………. | N137: ………………………………………………..
